[Event "Grand Prix Riga 2019"]
[Site "Riga"]
[Date "2019.07.13"]
[Round "1.4"]
[White "Dubov, Daniil"]
[Black "Mamedyarov, Shakhriyar"]
[Result "0-1"]
[ECO "A34"]
[WhiteElo "2700"]
[BlackElo "2765"]
[Annotator "RC"]
[PlyCount "155"]
[EventDate "2019.07.10"]
[EventType "k.o."]
[EventCountry "LAT"]
[SourceTitle "playchess.com"]
[Source "ChessBase"]
[SourceQuality "1"]
[TimeControl "40/5400+30:1800+30"]

1. Nf3 {[%emt 0:00:00]} Nf6 {[%emt 0:00:00]} 2. c4 {[%emt 0:00:00]} c5 {[%emt 0:00:26]} 3. Nc3 {[%emt 0:00:04]} d5 {[%emt 0:00:13]} 4. cxd5 {[%emt 0:00:16]} Nxd5 {[%emt 0:00:07]} 5. d4 {[%emt 0:01:06]} Nxc3 {[%emt 0:01:11]} 6. bxc3 {[%emt 0:00:08]} g6 {[%emt 0:00:15]} 7. e4 {[%emt 0:00:12]} Bg7 {[%emt 0:00:20]} 8. Bb5+ {[%emt 0:00:15]} Nc6 {[%emt 0:00:18]} 9. O-O {[%emt 0:00:10]} O-O {[%emt 0:00:27]} 10. Be3 {[%emt 0:00:17]} Bg4 {[%emt 0:00:13]} 11. d5 {[%emt 0:00:18]} Ne5 {[%emt 0:00:20]} 12. Be2 {[%emt 0:00:08]} Nxf3+ {[%emt 0:00:10]} 13. Bxf3 {[%emt 0:00:08]} Bxf3 {[%emt 0:00:04]} 14. Qxf3 {[%emt 0:00:08]} Bxc3 {[%emt 0:00:05]} 15. Rab1 {[%emt 0:00:08]} b6 {[%emt 0:00:05]} 16. Bxc5 {[%emt 0:00:10]} Rc8 {[%emt 0:00:05]} 17. Be3 {[%emt 0:02:59]} Qd7 {[%emt 0:04:31]} 18. Rfc1 {[%emt 0:11:05]} f5 {[%emt 0:09:36]} 19. g3 {[%emt 0:08:47]} Bf6 {[%emt 0:10:49]} 20. Bf4 {[%emt 0:05:19]} fxe4 {[%emt 0:05:19]} 21. Qxe4 {[%emt 0:01:03]} Qf5 {[%emt 0:08:15]} 22. Qe6+ {[%emt 0:14:11]} Qxe6 {[%emt 0:03:30]} 23. dxe6 {[%emt 0:00:08]} g5 {[%emt 0:00:22]} 24. Be3 {[%emt 0:01:54]} Kg7 {[%emt 0:06:29]} 25. g4 {[%emt 0:10:36]} Rfd8 {[%emt 0:06:59]} 26. a4 {[%emt 0:03:33]} h6 {[%emt 0:04:59]} 27. Kg2 {[%emt 0:04:50]} Rxc1 {[%emt 0:09:28]} 28. Rxc1 {[%emt 0:00:06]} Rd5 {[%emt 0:00:02]} 29. Kf3 {[%emt 0:02:25]} Ra5 {[%emt 0:04:08]} 30. Rc4 {[%emt 0:02:20]} Be5 {[%emt 0:04:30]} 31. Ke4 {[%emt 0:00:33]} Kf6 {[%emt 0:00:08]} 32. Bd2 {[%emt 0:00:57]} b5 {[%emt 0:01:19]} 33. axb5 {[%emt 0:00:27]} Rxb5 {[%emt 0:00:05]} 34. Ra4 {[%emt 0:01:50]} Bb8 {[%emt 0:00:27]} 35. Ra1 {[%emt 0:19:10]} Kxe6 {[%emt 0:02:26]} 36. h4 {[%emt 0:00:34]} gxh4 {[%emt 0:06:21]} 37. Rh1 {[%emt 0:01:12]} Re5+ {[%emt 0:02:38]} 38. Kd3 {[%emt 0:02:02]} Rd5+ {[%emt 0:00:37]} 39. Kc2 {[%emt 0:01:05]} h5 {[%emt 0:02:52]} 40. Rxh4 {[%emt 0:00:10]} hxg4 {[%emt 0:00:06]} 41. Rxg4 {[%emt 0:30:05]} Bd6 {[%emt 0:31:42]} 42. Ra4 {[%emt 0:04:02]} Bc5 {[%emt 0:00:15]} 43. f3 {[%emt 0:01:33]} Bb6 {[%emt 0:01:00]} 44. Bc3 {[%emt 0:00:00]} Kd7 {[%emt 0:00:00]} 45. Re4 {[%emt 0:00:00]} Bc5 {[%emt 0:00:00]} 46. f4 {[%emt 0:00:00]} Kc6 {[%emt 0:00:00]} 47. Ra4 {[%emt 0:00:00]} Rh5 {[%emt 0:00:00]} 48. Kb3 {[%emt 0:00:00]} Rh3 {[%emt 0:00:00]} 49. Kc4 {[%emt 0:00:00]} Re3 {[%emt 0:00:00]} 50. Ra6+ {[%emt 0:00:00]} Bb6 {[%emt 0:00:00]} 51. Be5 {[%emt 0:00:00]} Re1 {[%emt 0:00:00]} 52. Ra2 {[%emt 0:00:00]} Re4+ {[%emt 0:00:00]} 53. Kd3 {[%emt 0:00:00]} Kd5 {[%emt 0:00:00]} 54. Ra6 {[%emt 0:00:00]} Re3+ {[%emt 0:00:00]} 55. Kd2 {[%emt 0:00:00]} Kc4 {[%emt 0:00:00]} 56. Ra4+ {[%emt 0:00:00]} Kb5 {[%emt 0:00:00]} 57. Ra1 {[%emt 0:00:00]} Rh3 {[%emt 0:00:00]} 58. Rf1 {[%emt 0:00:00]} e6 {[%emt 0:05:25]} 59. Bb8 {[%emt 0:00:00]} Rh8 {[%emt 0:01:07]} 60. Be5 {[%emt 0:00:00]} Rh2+ {[%emt 0:00:06]} 61. Kd3 {[%emt 0:00:13]} Rh3+ {[%emt 0:00:06]} 62. Kd2 {[%emt 0:02:19]} Kc4 {[%emt 0:00:57]} 63. Rc1+ {[%emt 0:00:07]} Kd5 {[%emt 0:00:07]} 64. Rc8 {[%emt 0:01:00]} Ke4 {[%emt 0:02:20]} 65. Re8 {[%emt 0:02:11]} Rh6 {[%emt 0:00:11]} 66. Kc3 {[%emt 0:01:02]} Be3 {[%emt 0:01:07]} 67. Ra8 {[%emt 0:03:16]} Rh1 {[%emt 0:01:06]} 68. Re8 {[%emt 0:00:25]} Rc1+ {[%emt 0:00:34]} 69. Kb3 {[%emt 0:00:54]} Rc6 {[%emt 0:00:29]} 70. Rf8 {[%emt 0:00:09]} Rb6+ {[%emt 0:01:50]} 71. Kc4 {[%emt 0:00:49]} Rc6+ {[%emt 0:00:01]} 72. Kb3 {[%emt 0:00:08]} Rb6+ {[%emt 0:00:04]} 73. Kc4 {[%emt 0:00:09]} a5 {[%emt 0:01:06]} 74. Ra8 {[%emt 0:02:24]} Rc6+ {[%emt 0:01:27]} 75. Kb3 {[%emt 0:00:32]} Bxf4 {[%emt 0:00:23]} 76. Bc3 {[%emt 0:00:36]} Bc7 {[%emt 0:00:09]} 77. Rc8 {[%emt 0:02:45]} a4+ {[%emt 0:00:43]} 78. Kc2 {[%emt 0:00:16] Ke5} 0-1

[Event "Grand Prix Riga 2019"]
[Site "Riga"]
[Date "2019.07.14"]
[Round "1.6"]
[White "Nakamura, Hikaru"]
[Black "Topalov, Veselin"]
[Result "1/2-1/2"]
[ECO "A05"]
[WhiteElo "2754"]
[BlackElo "2740"]
[Annotator "ChessBase"]
[PlyCount "99"]
[EventDate "2019.07.10"]
[EventType "k.o."]
[EventCountry "LAT"]
[SourceTitle "playchess.com"]
[Source "ChessBase"]
[SourceQuality "1"]
[TimeControl "1500+10"]

1. Nf3 {[%emt 0:00:00]} Nf6 {[%emt 0:00:00]} 2. e3 {[%emt 0:00:00]} g6 {[%emt 0:00:11]} 3. b4 {[%emt 0:00:00]} Bg7 {[%emt 0:00:10]} 4. Bb2 {[%emt 0:00:00]} O-O {[%emt 0:00:12]} 5. c4 {[%emt 0:00:01]} b6 {[%emt 0:00:04]} 6. Be2 {[%emt 0:00:27]} c5 {[%emt 0:00:02]} 7. a3 {[%emt 0:00:11]} Bb7 {[%emt 0:00:31]} 8. O-O {[%emt 0:00:05]} d6 {[%emt 0:00:49]} 9. d3 {[%emt 0:00:35]} Nbd7 {[%emt 0:00:15]} 10. Nc3 {[%emt 0:00:02]} e6 {[%emt 0:00:27]} 11. Qb3 {[%emt 0:00:51]} Qe7 {[%emt 0:00:30]} 12. d4 {[%emt 0:00:28]} Rab8 {[%emt 0:00:17]} 13. a4 {[%emt 0:02:29]} d5 {[%emt 0:02:59]} 14. bxc5 {[%emt 0:00:25]} bxc5 {[%emt 0:00:02]} 15. Ba3 {[%emt 0:00:01]} Rfc8 {[%emt 0:00:20]} 16. cxd5 {[%emt 0:05:36]} Nxd5 {[%emt 0:00:52]} 17. Nxd5 {[%emt 0:00:15]} Bxd5 {[%emt 0:00:02]} 18. Qd1 {[%emt 0:00:01]} Qd8 {[%emt 0:01:36]} 19. Ba6 {[%emt 0:01:19]} Rc7 {[%emt 0:00:05]} 20. Bb5 {[%emt 0:00:02]} cxd4 {[%emt 0:04:10]} 21. Nxd4 {[%emt 0:01:49]} Nb6 {[%emt 0:00:25]} 22. Rc1 {[%emt 0:02:11]} Rxc1 {[%emt 0:02:04]} 23. Bxc1 {[%emt 0:00:05]} Rc8 {[%emt 0:00:07]} 24. Ba6 {[%emt 0:00:37]} Rb8 {[%emt 0:01:18]} 25. Re1 {[%emt 0:01:57]} Nd7 {[%emt 0:00:31]} 26. Bb5 {[%emt 0:00:55]} Nc5 {[%emt 0:00:08]} 27. Ba3 {[%emt 0:00:06]} Bf8 {[%emt 0:00:57]} 28. Qc2 {[%emt 0:01:04]} Rc8 {[%emt 0:00:41]} 29. Rc1 {[%emt 0:00:49]} Bb7 {[%emt 0:01:21]} 30. Qb1 {[%emt 0:00:27]} Be4 {[%emt 0:01:12]} 31. Qa2 {[%emt 0:00:30]} Bd5 {[%emt 0:00:23]} 32. Qc2 {[%emt 0:00:11]} Qg5 {[%emt 0:00:25]} 33. Bf1 {[%emt 0:00:10]} Qd8 {[%emt 0:00:32]} 34. Qd1 {[%emt 0:00:47]} h5 {[%emt 0:00:57]} 35. Nb5 {[%emt 0:01:11]} a6 {[%emt 0:00:02]} 36. Nd4 {[%emt 0:00:02]} Bb7 {[%emt 0:00:23]} 37. Rb1 {[%emt 0:00:12]} Be4 {[%emt 0:00:11]} 38. Rc1 {[%emt 0:00:03]} e5 {[%emt 0:00:38]} 39. Nf3 {[%emt 0:00:12]} Qxd1 {[%emt 0:00:22]} 40. Rxd1 {[%emt 0:00:00]} Bxf3 {[%emt 0:01:01]} 41. gxf3 {[%emt 0:00:02]} Nxa4 {[%emt 0:00:01]} 42. Bxa6 {[%emt 0:00:41]} Ra8 {[%emt 0:00:03]} 43. Bb7 {[%emt 0:00:40]} Rb8 {[%emt 0:00:08]} 44. Bxf8 {[%emt 0:00:02]} Kxf8 {[%emt 0:00:13]} 45. Bc6 {[%emt 0:00:01]} Nb6 {[%emt 0:00:04]} 46. Ra1 {[%emt 0:00:28]} Rc8 {[%emt 0:00:51]} 47. Be4 {[%emt 0:00:08]} Nd7 {[%emt 0:00:06]} 48. Ra7 {[%emt 0:00:37]} Nf6 {[%emt 0:00:04]} 49. Ra5 {[%emt 0:00:20]} Nxe4 {[%emt 0:00:07]} 50. fxe4 {[%emt 0:00:01]} 1/2-1/2